[Event "14th Chennai GM Open 2023"]
[Site "Chennai"]
[Date "2024.01.06"]
[Round "9.7"]
[White "Viani Antonio Dcunha"]
[Black "Murali Krishnan B T"]
[Result "1/2-1/2"]
[ECO "B01"]
[WhiteElo "2407"]
[BlackElo "2181"]
[Annotator "RC"]
[PlyCount "95"]
[EventDate "2023.12.31"]
[EventType "swiss"]
[EventCountry "IND"]
[SourceTitle "playchess.com"]
[Source "ChessBase"]
[SourceQuality "1"]
[TimeControl "5400+30"]

1. e4 {[%emt 0:00:06]} d5 {[%emt 0:00:45]} 2. exd5 {[%emt 0:00:11]} Qxd5 {[%emt 0:00:06]} 3. Nc3 {[%emt 0:00:08]} Qa5 {[%emt 0:00:05]} 4. d4 {[%emt 0:00:20]} Nf6 {[%emt 0:02:09]} 5. Nf3 {[%emt 0:00:20]} Bg4 {[%emt 0:01:19]} 6. h3 {[%emt 0:02:50]} Bxf3 {[%emt 0:01:07]} 7. Qxf3 {[%emt 0:00:08]} c6 {[%emt 0:00:04]} 8. Bd2 {[%emt 0:07:00]} Nbd7 {[%emt 0:08:54]} 9. Bc4 {[%emt 0:08:42]} Qb6 {[%emt 0:07:11]} 10. O-O-O {[%emt 0:01:08]} Qxd4 {[%emt 0:06:26]} 11. Qe2 {[%emt 0:15:52]} Qe5 {[%emt 0:03:39]} 12. Be3 {[%emt 0:02:39]} e6 {[%emt 0:00:11]} 13. f4 {[%emt 0:04:17]} Qa5 {[%emt 0:02:41]} 14. g4 {[%emt 0:18:33]} O-O-O {[%emt 0:04:35]} 15. f5 {[%emt 0:02:13]} Bb4 {[%emt 0:10:26]} 16. fxe6 {[%emt 0:01:35]} fxe6 {[%emt 0:02:07]} 17. Bd2 {[%emt 0:02:43]} Nd5 {[%emt 0:07:07]} 18. Ne4 {[%emt 0:03:00]} Bxd2+ {[%emt 0:01:13]} 19. Qxd2 {[%emt 0:05:04]} Qxd2+ {[%emt 0:00:51]} 20. Rxd2 {[%emt 0:00:03]} Ne5 {[%emt 0:08:25]} 21. Bb3 {[%emt 0:00:20]} h5 {[%emt 0:04:39]} 22. gxh5 {[%emt 0:01:42]} Rxh5 {[%emt 0:00:28]} 23. Nc5 {[%emt 0:06:00]} Rh6 {[%emt 0:10:34]} 24. Re2 {[%emt 0:03:03]} Nd7 {[%emt 0:07:13]} 25. Nxe6 {[%emt 0:00:50]} Re8 {[%emt 0:00:11]} 26. Bxd5 {[%emt 0:04:08]} cxd5 {[%emt 0:00:22]} 27. Rhe1 {[%emt 0:03:35]} Rxh3 {[%emt 0:00:33]} 28. Nxg7 {[%emt 0:00:06]} Rxe2 {[%emt 0:02:19]} 29. Rxe2 {[%emt 0:00:02]} Rf3 {[%emt 0:04:22]} 30. b3 {[%emt 0:01:02]} a6 {[%emt 0:00:09]} 31. a4 {[%emt 0:00:59]} Kc7 {[%emt 0:00:58]} 32. Kb2 {[%emt 0:00:21]} Nc5 {[%emt 0:00:47]} 33. Rh2 {[%emt 0:02:45]} Rf7 {[%emt 0:01:10]} 34. Rg2 {[%emt 0:00:10]} Kc6 {[%emt 0:00:57]} 35. Rg6+ {[%emt 0:02:11]} Kd7 {[%emt 0:00:13]} 36. Rg5 {[%emt 0:01:33]} Ne6 {[%emt 0:02:01]} 37. Nxe6 {[%emt 0:00:13]} Kxe6 {[%emt 0:00:04]} 38. Kc3 {[%emt 0:00:12]} Kd6 {[%emt 0:01:12]} 39. Rg6+ {[%emt 0:00:14]} Ke5 {[%emt 0:00:13]} 40. Rg8 {[%emt 0:01:05]} Kd6 {[%emt 0:00:18]} 41. Rd8+ {[%emt 0:01:38]} Kc6 {[%emt 0:00:07]} 42. Rh8 {[%emt 0:00:27]} a5 {[%emt 0:00:37]} 43. Rc8+ {[%emt 0:00:47]} Kd6 {[%emt 0:00:16]} 44. Kb2 {[%emt 0:00:53]} b6 {[%emt 0:00:42]} 45. c3 {[%emt 0:00:18]} Kd7 {[%emt 0:00:23]} 46. Rh8 {[%emt 0:00:53]} Rf2+ {[%emt 0:00:10]} 47. Ka3 {[%emt 0:00:13]} Rf3 {[%emt 0:00:14]} 48. Kb2 {[%emt 0:00:04]} 1/2-1/2

[Event "14th Chennai GM Open 2023"]
[Site "Chennai"]
[Date "2024.01.06"]
[Round "9.8"]
[White "Nithin Babu"]
[Black "Nitin, S.."]
[Result "1-0"]
[ECO "E94"]
[WhiteElo "2177"]
[BlackElo "2385"]
[Annotator "RC"]
[PlyCount "101"]
[EventDate "2023.12.31"]
[EventType "swiss"]
[EventCountry "IND"]
[SourceTitle "playchess.com"]
[Source "ChessBase"]
[SourceQuality "1"]
[TimeControl "5400+30"]

1. d4 {[%emt 0:03:24]} Nf6 {[%emt 0:00:40]} 2. c4 {[%emt 0:00:05]} g6 {[%emt 0:00:06]} 3. Nc3 {[%emt 0:00:10]} Bg7 {[%emt 0:00:07]} 4. e4 {[%emt 0:00:05]} d6 {[%emt 0:00:06]} 5. Be2 {[%emt 0:00:21]} O-O {[%emt 0:00:08]} 6. Be3 {[%emt 0:00:27]} Nbd7 {[%emt 0:07:42]} 7. Nf3 {[%emt 0:00:17]} e5 {[%emt 0:00:15]} 8. O-O {[%emt 0:00:17]} Qe7 {[%emt 0:02:32]} 9. Qc2 {[%emt 0:01:54]} c6 {[%emt 0:02:22]} 10. Rad1 {[%emt 0:00:43]} h6 {[%emt 0:03:31]} 11. d5 {[%emt 0:02:06]} c5 {[%emt 0:00:31]} 12. Kh1 {[%emt 0:04:07]} Nh5 {[%emt 0:06:43]} 13. g3 {[%emt 0:01:50]} Ndf6 {[%emt 0:05:58]} 14. Nh4 {[%emt 0:03:22]} Bh3 {[%emt 0:02:59]} 15. Ng2 {[%emt 0:01:47]} Bd7 {[%emt 0:17:10]} 16. a3 {[%emt 0:04:57]} b6 {[%emt 0:11:26]} 17. Bd2 {[%emt 0:04:04]} Bh3 {[%emt 0:01:21]} 18. b4 {[%emt 0:06:18]} Rac8 {[%emt 0:02:57]} 19. Rb1 {[%emt 0:02:32]} Ng4 {[%emt 0:01:45]} 20. bxc5 {[%emt 0:05:13]} Rxc5 {[%emt 0:01:28]} 21. f3 {[%emt 0:02:02]} Ngf6 {[%emt 0:00:42]} 22. Nb5 {[%emt 0:01:26]} Rd8 {[%emt 0:08:06]} 23. a4 {[%emt 0:01:27]} Rcc8 {[%emt 0:05:03]} 24. Rfc1 {[%emt 0:02:34]} a6 {[%emt 0:02:41]} 25. Nc3 {[%emt 0:02:33]} Bxg2+ {[%emt 0:02:07]} 26. Kxg2 {[%emt 0:00:02]} Nd7 {[%emt 0:00:06]} 27. a5 {[%emt 0:08:46]} bxa5 {[%emt 0:00:07]} 28. Na4 {[%emt 0:00:48]} Rf8 {[%emt 0:02:54]} 29. Rb7 {[%emt 0:03:44]} Qe8 {[%emt 0:01:00]} 30. Bxa5 {[%emt 0:01:49]} Bf6 {[%emt 0:02:39]} 31. Ra7 {[%emt 0:06:13]} Bg5 {[%emt 0:00:30]} 32. Rb1 {[%emt 0:01:03]} Be3 {[%emt 0:00:13]} 33. Rxa6 {[%emt 0:01:18]} Nc5 {[%emt 0:02:37]} 34. Nxc5 {[%emt 0:03:25]} Bxc5 {[%emt 0:00:08]} 35. Bb4 {[%emt 0:01:29]} Qe7 {[%emt 0:00:20]} 36. Bxc5 {[%emt 0:01:10]} Rxc5 {[%emt 0:00:07]} 37. Qd2 {[%emt 0:00:16]} Kg7 {[%emt 0:00:39]} 38. Rbb6 {[%emt 0:01:21]} Rd8 {[%emt 0:00:15]} 39. Qe3 {[%emt 0:07:18]} Rc7 {[%emt 0:01:53]} 40. c5 {[%emt 0:05:15]} Rxc5 {[%emt 0:00:34]} 41. Rxd6 {[%emt 0:00:12]} Rdc8 {[%emt 0:01:08]} 42. Rdc6 {[%emt 0:05:04]} R8xc6 {[%emt 0:00:34]} 43. Rxc6 {[%emt 0:00:35]} Rxc6 {[%emt 0:00:04]} 44. dxc6 {[%emt 0:00:05]} Nf6 {[%emt 0:00:14]} 45. Qc3 {[%emt 0:00:40]} Ne8 {[%emt 0:00:51]} 46. Bd1 {[%emt 0:00:33]} g5 {[%emt 0:01:37]} 47. Bb3 {[%emt 0:00:51]} Nc7 {[%emt 0:00:07]} 48. f4 {[%emt 0:02:09]} gxf4 {[%emt 0:02:39]} 49. gxf4 {[%emt 0:00:01]} Kf6 {[%emt 0:00:18]} 50. Qh3 {[%emt 0:03:22]} Qb4 {[%emt 0:01:38]} 51. Qf5+ {[%emt 0:00:17]} 1-0

[Event "14th Chennai GM Open 2023"]
[Site "Chennai"]
[Date "2024.01.06"]
[Round "9.10"]
[White "Jyotshnav Talukdar"]
[Black "Podolchenko, Evgeniy"]
[Result "0-1"]
[ECO "E61"]
[WhiteElo "1744"]
[BlackElo "2376"]
[Annotator "RC"]
[PlyCount "126"]
[EventDate "2023.12.31"]
[EventType "swiss"]
[EventCountry "IND"]
[SourceTitle "playchess.com"]
[Source "ChessBase"]
[SourceQuality "1"]
[TimeControl "5400+30"]

1. d4 {[%emt 0:00:02]} Nf6 {[%emt 0:06:20]} 2. Bf4 {[%emt 0:00:21]} b6 {[%emt 0:00:13]} 3. Nf3 {[%emt 0:00:13]} Bb7 {[%emt 0:00:07]} 4. e3 {[%emt 0:00:18]} g6 {[%emt 0:00:25]} 5. h3 {[%emt 0:01:01]} Bg7 {[%emt 0:00:07]} 6. Be2 {[%emt 0:02:28]} O-O {[%emt 0:00:08]} 7. O-O {[%emt 0:00:04]} d6 {[%emt 0:00:05]} 8. c4 {[%emt 0:01:17]} Nbd7 {[%emt 0:00:22]} 9. Nc3 {[%emt 0:00:15]} e6 {[%emt 0:03:02]} 10. Qc2 {[%emt 0:03:03]} Qe7 {[%emt 0:05:51]} 11. Bh2 {[%emt 0:01:23]} a6 {[%emt 0:03:23]} 12. Rfe1 {[%emt 0:09:52]} Rfe8 {[%emt 0:01:33]} 13. Rad1 {[%emt 0:00:48]} h6 {[%emt 0:02:49]} 14. a3 {[%emt 0:04:15]} Nh7 {[%emt 0:06:45]} 15. b4 {[%emt 0:10:22]} Rac8 {[%emt 0:13:08]} 16. Nd2 {[%emt 0:14:35]} f5 {[%emt 0:04:32]} 17. Bf3 {[%emt 0:01:04]} Bxf3 {[%emt 0:01:25]} 18. Nxf3 {[%emt 0:00:02]} g5 {[%emt 0:08:14]} 19. Qd3 {[%emt 0:14:09]} Qf7 {[%emt 0:17:00]} 20. e4 {[%emt 0:08:39]} f4 {[%emt 0:06:06]} 21. e5 {[%emt 0:00:36]} dxe5 {[%emt 0:01:42]} 22. Nxe5 {[%emt 0:03:07]} Nxe5 {[%emt 0:00:02]} 23. dxe5 {[%emt 0:00:02]} Nf8 {[%emt 0:00:56]} 24. g3 {[%emt 0:13:29]} Ng6 {[%emt 0:01:12]} 25. gxf4 {[%emt 0:00:07]} Nxf4 {[%emt 0:00:37]} 26. Bxf4 {[%emt 0:03:56]} Qxf4 {[%emt 0:00:02]} 27. Qg6 {[%emt 0:01:11]} Qf7 {[%emt 0:00:06]} 28. Qxf7+ {[%emt 0:01:22]} Kxf7 {[%emt 0:00:02]} 29. h4 {[%emt 0:03:52]} Rcd8 {[%emt 0:00:39]} 30. hxg5 {[%emt 0:01:18]} hxg5 {[%emt 0:00:02]} 31. b5 {[%emt 0:01:35]} a5 {[%emt 0:01:39]} 32. Ne4 {[%emt 0:00:34]} Kg6 {[%emt 0:00:18]} 33. c5 {[%emt 0:01:03]} bxc5 {[%emt 0:08:57]} 34. Rxd8 {[%emt 0:00:30]} Rxd8 {[%emt 0:00:01]} 35. Nxc5 {[%emt 0:00:01]} Kf5 {[%emt 0:00:02]} 36. Nb3 {[%emt 0:01:00]} a4 {[%emt 0:01:01]} 37. Nc5 {[%emt 0:00:27]} Rd4 {[%emt 0:00:22]} 38. Na6 {[%emt 0:00:31]} Bxe5 {[%emt 0:00:27]} 39. Rc1 {[%emt 0:00:35]} Rd2 {[%emt 0:00:18]} 40. Nxc7 {[%emt 0:00:24]} Bd4 {[%emt 0:00:08]} 41. Rc4 {[%emt 0:00:36]} Bxf2+ {[%emt 0:00:34]} 42. Kf1 {[%emt 0:00:05]} g4 {[%emt 0:00:19]} 43. Rxa4 {[%emt 0:00:46]} g3 {[%emt 0:00:58]} 44. Nxe6 {[%emt 0:00:40]} Kxe6 {[%emt 0:01:49]} 45. Rg4 {[%emt 0:00:30]} Kf5 {[%emt 0:00:26]} 46. Rg8 {[%emt 0:00:03]} Rb2 {[%emt 0:00:21]} 47. a4 {[%emt 0:00:13]} Rb4 {[%emt 0:00:12]} 48. Rf8+ {[%emt 0:00:13]} Ke5 {[%emt 0:00:55]} 49. Re8+ {[%emt 0:00:19]} Kd6 {[%emt 0:00:04]} 50. Ra8 {[%emt 0:00:41]} Bd4 {[%emt 0:00:45]} 51. Rd8+ {[%emt 0:01:21]} Kc5 {[%emt 0:00:14]} 52. Rc8+ {[%emt 0:00:30]} Kd5 {[%emt 0:00:02]} 53. Kg2 {[%emt 0:00:36]} Be5 {[%emt 0:00:07]} 54. Rc2 {[%emt 0:00:26]} Rxa4 {[%emt 0:00:10]} 55. Rd2+ {[%emt 0:00:36]} Ke4 {[%emt 0:00:25]} 56. Re2+ {[%emt 0:00:02]} Kf5 {[%emt 0:00:09]} 57. Rc2 {[%emt 0:00:42]} Rb4 {[%emt 0:00:40]} 58. Ra2 {[%emt 0:00:48]} Rxb5 {[%emt 0:00:07]} 59. Kh3 {[%emt 0:00:23]} Rb8 {[%emt 0:00:10]} 60. Kg2 {[%emt 0:00:26]} Kg4 {[%emt 0:00:02]} 61. Ra4+ {[%emt 0:00:17]} Bf4 {[%emt 0:00:02]} 62. Ra2 {[%emt 0:00:21]} Rh8 {[%emt 0:00:13]} 63. Kg1 {[%emt 0:01:03]} Be3+ {[%emt 0:00:05]} 0-1

[Event "14th Chennai GM Open 2023"]
[Site "Chennai"]
[Date "2024.01.06"]
[Round "9.11"]
[White "Shah Jeet"]
[Black "Khusenkhojaev, Muhammad"]
[Result "1/2-1/2"]
[ECO "C54"]
[WhiteElo "1830"]
[BlackElo "2366"]
[Annotator "RC"]
[PlyCount "109"]
[EventDate "2023.12.31"]
[EventType "swiss"]
[EventCountry "IND"]
[SourceTitle "playchess.com"]
[Source "ChessBase"]
[SourceQuality "1"]
[TimeControl "5400+30"]

1. e4 {[%emt 0:00:20]} e5 {[%emt 0:02:41]} 2. Nf3 {[%emt 0:00:09]} Nc6 {[%emt 0:00:16]} 3. Bc4 {[%emt 0:00:07]} Bc5 {[%emt 0:00:06]} 4. c3 {[%emt 0:00:07]} Nf6 {[%emt 0:00:06]} 5. d3 {[%emt 0:00:04]} O-O {[%emt 0:00:32]} 6. O-O {[%emt 0:00:09]} d5 {[%emt 0:00:32]} 7. exd5 {[%emt 0:00:10]} Nxd5 {[%emt 0:00:07]} 8. Nbd2 {[%emt 0:00:20]} Nb6 {[%emt 0:00:57]} 9. Bb5 {[%emt 0:00:54]} Bd6 {[%emt 0:00:51]} 10. Re1 {[%emt 0:02:11]} Re8 {[%emt 0:04:58]} 11. Ne4 {[%emt 0:07:31]} a6 {[%emt 0:01:48]} 12. Bxc6 {[%emt 0:00:34]} bxc6 {[%emt 0:00:05]} 13. d4 {[%emt 0:04:59]} exd4 {[%emt 0:05:48]} 14. Qxd4 {[%emt 0:07:15]} Bf8 {[%emt 0:05:21]} 15. Bf4 {[%emt 0:21:44]} Qxd4 {[%emt 0:02:45]} 16. cxd4 {[%emt 0:03:40]} Nd5 {[%emt 0:00:33]} 17. Bd2 {[%emt 0:01:03]} f6 {[%emt 0:01:31]} 18. Rac1 {[%emt 0:05:38]} Bf5 {[%emt 0:00:15]} 19. Nc5 {[%emt 0:01:02]} Rxe1+ {[%emt 0:00:24]} 20. Rxe1 {[%emt 0:00:58]} g5 {[%emt 0:01:34]} 21. g3 {[%emt 0:04:23]} a5 {[%emt 0:06:31]} 22. b3 {[%emt 0:04:30]} Nb4 {[%emt 0:00:56]} 23. Rc1 {[%emt 0:02:48]} Rb8 {[%emt 0:06:26]} 24. a3 {[%emt 0:06:16]} Nd3 {[%emt 0:08:59]} 25. Rc3 {[%emt 0:05:42]} Nxc5 {[%emt 0:01:16]} 26. dxc5 {[%emt 0:00:03]} Rd8 {[%emt 0:00:32]} 27. Kf1 {[%emt 0:07:08]} g4 {[%emt 0:06:30]} 28. Nh4 {[%emt 0:00:07]} Be6 {[%emt 0:00:07]} 29. Bf4 {[%emt 0:02:38]} Rd1+ {[%emt 0:00:26]} 30. Ke2 {[%emt 0:00:05]} Ra1 {[%emt 0:00:07]} 31. b4 {[%emt 0:05:23]} axb4 {[%emt 0:02:58]} 32. axb4 {[%emt 0:00:05]} Rb1 {[%emt 0:00:07]} 33. Bxc7 {[%emt 0:02:57]} Rxb4 {[%emt 0:00:09]} 34. Bd6 {[%emt 0:01:31]} Bh6 {[%emt 0:03:50]} 35. Kd3 {[%emt 0:02:16]} Ra4 {[%emt 0:01:55]} 36. Rc2 {[%emt 0:00:50]} Ra3+ {[%emt 0:06:23]} 37. Rc3 {[%emt 0:00:28]} Ra1 {[%emt 0:01:40]} 38. Ng2 {[%emt 0:00:16]} Bf5+ {[%emt 0:02:41]} 39. Ke2 {[%emt 0:00:01]} Ra2+ {[%emt 0:04:37]} 40. Kf1 {[%emt 0:00:00]} Be4 {[%emt 0:00:21]} 41. Nf4 {[%emt 0:00:28]} Bf3 {[%emt 0:01:47]} 42. Re3 {[%emt 0:00:46]} Ra7 {[%emt 0:06:17]} 43. Ke1 {[%emt 0:00:47]} Kf7 {[%emt 0:00:17]} 44. Kd2 {[%emt 0:01:01]} Bg5 {[%emt 0:01:10]} 45. Kc2 {[%emt 0:01:03]} f5 {[%emt 0:00:26]} 46. Rb3 {[%emt 0:01:05]} Be4+ {[%emt 0:01:48]} 47. Kd2 {[%emt 0:00:11]} Bf6 {[%emt 0:00:24]} 48. Ke3 {[%emt 0:00:39]} Bd8 {[%emt 0:02:05]} 49. Rb8 {[%emt 0:01:04]} Ra3+ {[%emt 0:00:54]} 50. Kd4 {[%emt 0:00:35]} Ba5 {[%emt 0:05:08]} 51. Rb7+ {[%emt 0:00:23]} Kg8 {[%emt 0:00:30]} 52. Rb8+ {[%emt 0:00:13]} Kf7 {[%emt 0:00:19]} 53. Rb7+ {[%emt 0:00:03]} Kg8 {[%emt 0:01:27]} 54. Rb8+ {[%emt 0:00:04]} Kf7 {[%emt 0:00:03]} 55. Rb7+ {[%emt 0:00:13]} 1/2-1/2

[Event "14th Chennai GM Open 2023"]
[Site "Chennai"]
[Date "2024.01.06"]
[Round "9.13"]
[White "Saravana, Krishnan P."]
[Black "Aakash G"]
[Result "0-1"]
[ECO "B90"]
[WhiteElo "2269"]
[BlackElo "1823"]
[Annotator "RC"]
[PlyCount "106"]
[EventDate "2023.12.31"]
[EventType "swiss"]
[EventCountry "IND"]
[SourceTitle "playchess.com"]
[Source "ChessBase"]
[SourceQuality "1"]
[TimeControl "5400+30"]

1. e4 {[%emt 1:31:00]} c5 {[%emt 0:00:08]} 2. Nf3 {[%emt 0:00:00]} d6 {[%emt 0:00:08]} 3. d4 {[%emt 0:00:00]} cxd4 {[%emt 0:00:08]} 4. Nxd4 {[%emt 0:00:00]} Nf6 {[%emt 0:00:11]} 5. Nc3 {[%emt 0:00:00]} a6 {[%emt 0:00:12]} 6. Nb3 {[%emt 0:00:00]} e6 {[%emt 0:02:03]} 7. g4 {[%emt 0:00:00]} Nc6 {[%emt 0:01:53]} 8. g5 {[%emt 0:00:00]} Nd7 {[%emt 0:00:54]} 9. h4 {[%emt 0:00:00]} Be7 {[%emt 0:01:40]} 10. a4 {[%emt 0:00:00]} b6 {[%emt 0:01:17]} 11. Be3 {[%emt 0:00:00]} Bb7 {[%emt 0:01:16]} 12. Qe2 {[%emt 0:00:00]} Rc8 {[%emt 0:03:20]} 13. Bg2 {[%emt 0:00:00]} h6 {[%emt 0:15:58]} 14. g6 {[%emt 0:00:00]} fxg6 {[%emt 0:02:13]} 15. Bh3 {[%emt 0:00:00]} Nf8 {[%emt 0:02:43]} 16. O-O-O {[%emt 0:00:00]} Bf6 {[%emt 0:03:50]} 17. Nd5 {[%emt 0:00:00]} exd5 {[%emt 0:01:15]} 18. exd5 {[%emt 0:00:00]} Ne7 {[%emt 0:00:38]} 19. Bxc8 {[%emt 0:00:00]} Qxc8 {[%emt 0:02:05]} 20. Bd4 {[%emt 0:00:00]} Kf7 {[%emt 0:05:11]} 21. Rhe1 {[%emt 0:00:00]} Nxd5 {[%emt 0:06:43]} 22. Bxf6 {[%emt 0:00:00]} gxf6 {[%emt 0:04:10]} 23. Nd4 {[%emt 0:00:00]} Rh7 {[%emt 0:09:38]} 24. h5 {[%emt 0:00:00]} g5 {[%emt 0:00:59]} 25. Qd3 {[%emt 0:00:00]} Kg8 {[%emt 0:07:12]} 26. Nf5 {[%emt 0:00:00]} Qd7 {[%emt 0:01:10]} 27. Kb1 {[%emt 0:00:00]} Bc6 {[%emt 0:08:39]} 28. Qf3 {[%emt 0:00:00]} Nf4 {[%emt 0:05:16]} 29. Qb3+ {[%emt 0:00:00]} d5 {[%emt 0:01:14]} 30. Qxb6 {[%emt 0:01:33]} Nxh5 {[%emt 0:01:46]} 31. Nd4 {[%emt 0:06:16]} Bb7 {[%emt 0:04:19]} 32. Rh1 {[%emt 0:00:11]} Qf7 {[%emt 0:04:43]} 33. Nf5 {[%emt 0:00:26]} Qg6 {[%emt 0:00:22]} 34. Nd6 {[%emt 0:00:29]} f5 {[%emt 0:01:41]} 35. Qb4 {[%emt 0:04:51]} a5 {[%emt 0:01:08]} 36. Qc5 {[%emt 0:00:25]} Nf4 {[%emt 0:00:28]} 37. Rhe1 {[%emt 0:00:23]} Rd7 {[%emt 0:01:09]} 38. Nb5 {[%emt 0:00:33]} Qc6 {[%emt 0:01:08]} 39. Qa3 {[%emt 0:00:10]} N4e6 {[%emt 0:00:20]} 40. Qh3 {[%emt 0:00:27]} Ng7 {[%emt 0:00:18]} 41. Rd3 {[%emt 0:01:01]} Ba6 {[%emt 0:00:48]} 42. Rc3 {[%emt 0:00:31]} Qb6 {[%emt 0:00:08]} 43. Rh1 {[%emt 0:03:44]} h5 {[%emt 0:00:51]} 44. Qg3 {[%emt 0:00:00]} Bxb5 {[%emt 0:00:27]} 45. axb5 {[%emt 0:00:00]} d4 {[%emt 0:00:02]} 46. Rc8 {[%emt 0:00:00]} Qb7 {[%emt 0:00:03]} 47. Qb3+ {[%emt 0:00:00]} Kh7 {[%emt 0:01:13]} 48. Rc6 {[%emt 0:00:00]} Re7 {[%emt 0:00:43]} 49. Qd5 {[%emt 0:00:17]} Ng6 {[%emt 0:00:22]} 50. Qxd4 {[%emt 0:00:21]} Ne5 {[%emt 0:00:18]} 51. Qd6 {[%emt 0:01:35]} Nxc6 {[%emt 0:00:09]} 52. bxc6 {[%emt 0:00:05]} Qb4 {[%emt 0:00:31]} 53. Qf6 {[%emt 0:00:54]} Re1+ {[%emt 0:00:38]} 0-1

[Event "14th Chennai GM Open 2023"]
[Site "Chennai"]
[Date "2024.01.07"]
[Round "10.1"]
[White "Fedorov, Alexei"]
[Black "Srihari L R"]
[Result "1/2-1/2"]
[ECO "B12"]
[WhiteElo "2454"]
[BlackElo "2467"]
[Annotator "TA"]
[PlyCount "62"]
[EventDate "2023.12.31"]
[EventType "swiss"]
[EventCountry "IND"]
[SourceTitle "playchess.com"]
[Source "ChessBase"]
[SourceQuality "1"]
[TimeControl "5400+30"]

{[%evp 9,62,0,3,0,23,6,17,5,7,4,0,0,45,28,41,48,54,47,48,23,60,0,0,0,18,24,18,33,43,-33,-38,-35,-28,-23,-51,-56,-56,-47,-55,-45,-5,-1,-6,-8,-3,-4,0,0,0,0,0,0,-2,-6,-2]} 1. e4 {[%emt 0:00:03]} c6 {[%emt 0:01:57]} 2. d4 {[%emt 0:00:08]} d5 {[%emt 0:00:44]} 3. e5 {[%emt 0:00:09]} c5 {[%emt 0:00:04]} 4. dxc5 {[%emt 0:00:59]} e6 {[%emt 0:00:56]} 5. a3 {[%emt 0:00:14]} Bxc5 {[%emt 0:00:08]} 6. Nf3 {[%emt 0:00:47] B12: Caro-Kann: Advance Variation.} Nd7 {[%emt 0:00:28]} 7. b4 {[%emt 0:02:35]} Be7 {[%emt 0:00:24]} 8. Nbd2 {[%emt 0:00:08]} a5 {[%emt 0:01:30] [#]} 9. Rb1 $146 {[%emt 0:01:25]} ({Predecessor:} 9. b5 f6 10. Bb2 fxe5 11. Nxe5 Nxe5 12. Bxe5 Bf6 13. Bxf6 Nxf6 14. Be2 O-O 15. O-O e5 16. c4 d4 17. Bf3 Qe7 18. Re1 Re8 19. Re4 Bf5 {½-½ Skogheim,O (1992)-Vinke,D (2166) EU-ch Seniors 65 18th 2018 (3)}) 9... axb4 {[%emt 0:05:05]} 10. axb4 {[%emt 0:00:05]} f6 {[%emt 0:00:50]} 11. Bb5 {[%emt 0:05:01]} fxe5 {[%emt 0:16:23]} 12. Nxe5 {[%emt 0:00:48] [#] Strongly threatening Qh5+.} Ngf6 {[%emt 0:00:05] Inhibits Qh5+.} 13. O-O {[%emt 0:01:48]} O-O {[%emt 0:00:07]} 14. Bb2 {[%emt 0:00:49]} (14. Nef3 $5 {[%cal Rc1b2]}) 14... Ra2 {[%emt 0:05:21][%cal Oa2b2]} 15. Nxd7 {[%emt 0:22:04]} (15. Nef3 $14) 15... Bxd7 $11 {[%emt 0:00:10]} 16. Bd3 {[%emt 0:00:09]} Ra4 {[%emt 0:03:20]} (16... Bxb4 $2 17. Bxf6 Qxf6 18. Rxb4 $18) 17. b5 {[%emt 0:06:36]} Rb4 {[%emt 0:23:43]} 18. Qe2 {[%emt 0:09:59]} Ng4 {[%emt 0:14:01][%cal Of8f2] ...Rxf2! is the strong threat.} 19. c4 {[%emt 0:23:54] [#]} ({White should play} 19. h3 $14 Nf6 20. c3) 19... Nxf2 $1 $15 {[%emt 0:02:22]} 20. Rxf2 {[%emt 0:00:20]} Bc5 {[%emt 0:00:02][%mdl 64] Pin} 21. Nf3 $1 {[%emt 0:00:59] Bd4 would be deadly.} dxc4 $1 {[%emt 0:02:15]} 22. Bc2 {[%emt 0:16:24][%cal Oe2e4]} Qb6 {[%emt 0:03:27][%cal Ob4b5]} ({Reject} 22... Bxf2+ 23. Qxf2 Rxb5 24. Qe1 $11 (24. Qd4 Qb6 $17)) 23. Bc3 $1 {[%emt 0:00:48]} Rxb1+ {[%emt 0:00:11]} ({Don't play} 23... Rxb5 24. Rbf1 Bxf2+ 25. Rxf2 $16) 24. Bxb1 {[%emt 0:00:03][%cal Oe2e5]} Bxf2+ {[%emt 0:00:13]} (24... Bxb5 {feels hotter.} 25. Qe5 Bxf2+ 26. Kh1 Rf6) 25. Qxf2 {[%emt 0:00:03] The position is equal.} Qxf2+ {[%emt 0:00:09]} 26. Kxf2 {[%emt 0:00:03]} Bxb5 {[%emt 0:00:08]} 27. Be4 {[%emt 0:00:48]} Bc6 {[%emt 0:02:14]} 28. Bxc6 {[%emt 0:00:15]} bxc6 {[%emt 0:00:07]} 29. Ke3 {[%emt 0:00:46]} Rd8 {[%emt 0:01:07] Hoping for ...Rd3+.} 30. Ne5 {[%emt 0:01:39][%csl LRc4,LRc6] Prevents Rd3+} Rd1 {[%emt 0:00:07]} 31. Bd2 {[%emt 0:00:33]} Rg1 {[%emt 0:03:12] An exciting game.   Weighted Error Value: White=0.10 (very precise) /Black=0.09 (flawless)} 1/2-1/2